[Event "Late-Titled-Tuesday-Blitz-March-05-2024"]
[Site "Chess.com"]
[Date "2024.03.05"]
[Round "3"]
[White "Englishman_18"]
[Black "AlexTruskavetsky"]
[Result "0-1"]
[WhiteElo "2285"]
[BlackElo "2697"]
[TimeControl "180+1"]
[EndTime "14:29:30 PST"]
[Termination "AlexTruskavetsky won by resignation"]

1. Nf3 {[%clk 0:03:00.3]} 1... Nf6 {[%clk 0:02:59.9]} 2. c4 {[%clk 0:02:51.8]}
2... e6 {[%clk 0:02:58.4]} 3. g3 {[%clk 0:02:51.7]} 3... d5 {[%clk 0:02:58.7]}
4. Bg2 {[%clk 0:02:52.2]} 4... dxc4 {[%clk 0:02:57.5]} 5. Qa4+ {[%clk
0:02:51.4]} 5... Bd7 {[%clk 0:02:53.9]} 6. Qxc4 {[%clk 0:02:51]} 6... c5 {[%clk
0:02:54.3]} 7. O-O {[%clk 0:02:49.1]} 7... Bc6 {[%clk 0:02:54.5]} 8. d3 {[%clk
0:02:47.6]} 8... Nbd7 {[%clk 0:02:54.9]} 9. Qc2 {[%clk 0:02:40.8]} 9... Be7
{[%clk 0:02:55.2]} 10. Nc3 {[%clk 0:02:40.5]} 10... O-O {[%clk 0:02:55.4]} 11.
e4 {[%clk 0:02:39.5]} 11... Rc8 {[%clk 0:02:55.9]} 12. Be3 {[%clk 0:02:39.5]}
12... b5 {[%clk 0:02:48.8]} 13. Rfd1 {[%clk 0:02:31.6]} 13... Qa5 {[%clk
0:02:47.9]} 14. Rac1 {[%clk 0:02:30.6]} 14... b4 {[%clk 0:02:47.3]} 15. Ne2
{[%clk 0:02:22]} 15... Nb6 {[%clk 0:02:46.1]} 16. b3 {[%clk 0:02:19.2]} 16...
Bb7 {[%clk 0:02:27.8]} 17. Nd2 {[%clk 0:02:13.1]} 17... Ng4 {[%clk 0:02:26.1]}
18. Nc4 {[%clk 0:02:07.4]} 18... Nxc4 {[%clk 0:02:26]} 19. Qxc4 {[%clk
0:02:07.3]} 19... Nxe3 {[%clk 0:02:26]} 20. fxe3 {[%clk 0:02:07.3]} 20... Bg5
{[%clk 0:02:25.5]} 21. Nf4 {[%clk 0:02:05.9]} 21... e5 {[%clk 0:02:25.9]} 22.
Nd5 {[%clk 0:01:41.4]} 22... Bxd5 {[%clk 0:02:24.9]} 23. exd5 {[%clk 0:01:35.8]}
23... Bxe3+ {[%clk 0:02:25.2]} 24. Kh1 {[%clk 0:01:36]} 24... Bxc1 {[%clk
0:02:25.6]} 25. Rxc1 {[%clk 0:01:36.6]} 25... Rfd8 {[%clk 0:02:24.1]} 26. Qg4
{[%clk 0:01:34.2]} 26... Qb6 {[%clk 0:02:21.3]} 27. Rf1 {[%clk 0:01:28.4]} 27...
Qg6 {[%clk 0:02:19.8]} 28. Qe2 {[%clk 0:01:24.9]} 28... Re8 {[%clk 0:02:16.7]}
29. Be4 {[%clk 0:01:24]} 29... Qd6 {[%clk 0:02:16.4]} 30. Qf3 {[%clk 0:01:12.9]}
30... Rc7 {[%clk 0:02:16.2]} 31. h4 {[%clk 0:01:10.3]} 31... a5 {[%clk 0:02:15]}
32. g4 {[%clk 0:01:04.1]} 32... a4 {[%clk 0:02:12.1]} 33. g5 {[%clk 0:01:00.9]}
33... axb3 {[%clk 0:02:10.4]} 34. axb3 {[%clk 0:01:01.1]} 34... Ra8 {[%clk
0:02:10.6]} 35. h5 {[%clk 0:00:58.7]} 35... g6 {[%clk 0:01:53.9]} 36. Qh3 {[%clk
0:00:46]} 36... Ra3 {[%clk 0:01:05.2]} 37. Rf6 {[%clk 0:00:39.8]} 37... Qd8
{[%clk 0:01:02.9]} 38. hxg6 {[%clk 0:00:36.3]} 38... fxg6 {[%clk 0:00:50.4]} 39.
Qe6+ {[%clk 0:00:27.7]} 39... Kh8 {[%clk 0:00:49.6]} 40. Qxe5 {[%clk 0:00:26.2]}
40... Rg7 {[%clk 0:00:48.7]} 41. Re6 {[%clk 0:00:26]} 41... Ra8 {[%clk
0:00:47.4]} 42. d6 {[%clk 0:00:22.9]} 42... Rb8 {[%clk 0:00:47.6]} 43. d7 {[%clk
0:00:17.8]} 43... Qxd7 {[%clk 0:00:34.5]} 44. Qxb8+ {[%clk 0:00:17]} 44... Rg8
{[%clk 0:00:35.2]} 45. Qe5+ {[%clk 0:00:16.6]} 45... Qg7 {[%clk 0:00:35.9]} 46.
Qxg7+ {[%clk 0:00:16.5]} 46... Kxg7 {[%clk 0:00:36.8]} 47. Re7+ {[%clk
0:00:16.6]} 47... Kh8 {[%clk 0:00:37.5]} 48. Bd5 {[%clk 0:00:17]} 48... Rf8
{[%clk 0:00:35.3]} 49. Bc4 {[%clk 0:00:17]} 49... h5 {[%clk 0:00:20.6]} 50. Kg2
{[%clk 0:00:16]} 50... Rf5 {[%clk 0:00:20.8]} 51. Re8+ {[%clk 0:00:15.4]} 51...
Kh7 {[%clk 0:00:20.7]} 52. Re7+ {[%clk 0:00:14.9]} 52... Kh8 {[%clk 0:00:21.2]}
53. Re8+ {[%clk 0:00:13.5]} 53... Kg7 {[%clk 0:00:21.8]} 54. Rg8+ {[%clk
0:00:12.8]} 54... Kh7 {[%clk 0:00:22.2]} 55. Re8 {[%clk 0:00:13]} 55... Rxg5+
{[%clk 0:00:22.7]} 56. Kf3 {[%clk 0:00:13.4]} 56... Rf5+ {[%clk 0:00:22.8]} 57.
Kg3 {[%clk 0:00:13.4]} 57... Kh6 {[%clk 0:00:22.7]} 58. Rh8+ {[%clk 0:00:12.9]}
58... Kg5 {[%clk 0:00:23]} 59. Re8 {[%clk 0:00:12.2]} 59... h4+ {[%clk
0:00:23.1]} 60. Kh3 {[%clk 0:00:12.1]} 60... Rf3+ {[%clk 0:00:23.6]} 61. Kg2
{[%clk 0:00:11.9]} 61... Rf5 {[%clk 0:00:22.3]} 62. Re4 {[%clk 0:00:11.4]} 62...
Kh5 {[%clk 0:00:21.8]} 63. Bg8 {[%clk 0:00:10.4]} 63... g5 {[%clk 0:00:21.8]}
64. Be6 {[%clk 0:00:10.3]} 64... Rf6 {[%clk 0:00:22.1]} 65. Bd7 {[%clk
0:00:09.9]} 65... Rd6 {[%clk 0:00:21.1]} 66. Be8+ {[%clk 0:00:09.6]} 66... Kh6
{[%clk 0:00:20.8]} 67. Re3 {[%clk 0:00:09.6]} 67... g4 {[%clk 0:00:20.7]} 68.
Re4 {[%clk 0:00:09.1]} 68... Kg5 {[%clk 0:00:21.2]} 69. Re5+ {[%clk 0:00:09]}
69... Kf4 {[%clk 0:00:21.9]} 70. Rf5+ {[%clk 0:00:09.4]} 70... Kxf5 {[%clk
0:00:22.2]} 0-1

[Event "Late-Titled-Tuesday-Blitz-March-05-2024"]
[Site "Chess.com"]
[Date "2024.03.05"]
[Round "3"]
[White "subham777"]
[Black "Eloist"]
[Result "1-0"]
[WhiteElo "2585"]
[BlackElo "2425"]
[TimeControl "180+1"]
[EndTime "14:29:53 PST"]
[Termination "subham777 won on time"]

1. e4 {[%clk 0:03:00.9]} 1... e6 {[%clk 0:02:55.3]} 2. Nf3 {[%clk 0:03:00.3]}
2... d5 {[%clk 0:02:55.5]} 3. Nc3 {[%clk 0:03:00.5]} 3... Nf6 {[%clk 0:02:54.8]}
4. e5 {[%clk 0:03:00.6]} 4... Nfd7 {[%clk 0:02:54.7]} 5. d4 {[%clk 0:03:01.3]}
5... c5 {[%clk 0:02:55.2]} 6. dxc5 {[%clk 0:03:02.1]} 6... Nc6 {[%clk
0:02:55.7]} 7. Bf4 {[%clk 0:03:02.5]} 7... Bxc5 {[%clk 0:02:55.7]} 8. Bd3 {[%clk
0:03:02.5]} 8... f6 {[%clk 0:02:55.9]} 9. exf6 {[%clk 0:03:01.9]} 9... Qxf6
{[%clk 0:02:56.8]} 10. Bg5 {[%clk 0:03:01.9]} 10... Qf7 {[%clk 0:02:56.5]} 11.
Bh4 {[%clk 0:03:00.1]} 11... h6 {[%clk 0:02:56.3]} 12. Qe2 {[%clk 0:02:59.3]}
12... O-O {[%clk 0:02:55.8]} 13. O-O-O {[%clk 0:02:57.8]} 13... Bb4 {[%clk
0:02:50.4]} 14. Nb5 {[%clk 0:02:48.8]} 14... Nc5 {[%clk 0:02:40.6]} 15. Bg3
{[%clk 0:02:33.5]} 15... Nxd3+ {[%clk 0:02:34.7]} 16. Qxd3 {[%clk 0:02:28.7]}
16... a6 {[%clk 0:02:22.9]} 17. Nbd4 {[%clk 0:02:25]} 17... Bd7 {[%clk
0:02:17.5]} 18. Nxc6 {[%clk 0:02:21.4]} 18... Bxc6 {[%clk 0:02:15.5]} 19. Ne5
{[%clk 0:02:21.4]} 19... Qf5 {[%clk 0:02:10.6]} 20. Qxf5 {[%clk 0:02:10.2]}
20... Rxf5 {[%clk 0:02:09.8]} 21. c3 {[%clk 0:02:08.4]} 21... Bc5 {[%clk
0:02:03.3]} 22. f3 {[%clk 0:01:53.8]} 22... Bb5 {[%clk 0:01:57.2]} 23. Rhe1
{[%clk 0:01:41.1]} 23... Rc8 {[%clk 0:01:51.4]} 24. Nd3 {[%clk 0:01:34]} 24...
Bxd3 {[%clk 0:01:44.9]} 25. Rxd3 {[%clk 0:01:34.9]} 25... Kf7 {[%clk 0:01:41.8]}
26. Kc2 {[%clk 0:01:31.5]} 26... b5 {[%clk 0:01:41.7]} 27. a3 {[%clk 0:01:30.3]}
27... a5 {[%clk 0:01:41.4]} 28. Rd2 {[%clk 0:01:27.9]} 28... b4 {[%clk
0:01:39.4]} 29. axb4 {[%clk 0:01:27.7]} 29... axb4 {[%clk 0:01:39.8]} 30. Rde2
{[%clk 0:01:28.2]} 30... Rc6 {[%clk 0:01:39.2]} 31. Ra1 {[%clk 0:01:22.7]} 31...
bxc3 {[%clk 0:01:36.5]} 32. bxc3 {[%clk 0:01:17.7]} 32... Bb4 {[%clk 0:01:25.6]}
33. Ra7+ {[%clk 0:00:58.2]} 33... Kf6 {[%clk 0:01:25.6]} 34. Bh4+ {[%clk
0:00:35.8]} 34... g5 {[%clk 0:01:25.1]} 35. Be1 {[%clk 0:00:31.1]} 35... d4
{[%clk 0:01:22.8]} 36. Rh7 {[%clk 0:00:30.2]} 36... Kg6 {[%clk 0:01:21.8]} 37.
Rb7 {[%clk 0:00:24.3]} 37... Bxc3 {[%clk 0:01:20.4]} 38. Kd3 {[%clk 0:00:24.3]}
38... Bxe1 {[%clk 0:01:10.5]} 39. Rxe1 {[%clk 0:00:24.1]} 39... Rd5 {[%clk
0:00:44.4]} 40. Re7 {[%clk 0:00:20.5]} 40... e5 {[%clk 0:00:40.5]} 41. R1xe5
{[%clk 0:00:13.1]} 41... Rc3+ {[%clk 0:00:35.6]} 42. Kd2 {[%clk 0:00:12.5]}
42... Rxe5 {[%clk 0:00:31.6]} 43. Rxe5 {[%clk 0:00:13.4]} 43... Ra3 {[%clk
0:00:31.6]} 44. Rc5 {[%clk 0:00:11.8]} 44... d3 {[%clk 0:00:23.1]} 45. Rc3
{[%clk 0:00:05.9]} 45... Ra2+ {[%clk 0:00:22.9]} 46. Kxd3 {[%clk 0:00:06.5]}
46... Rxg2 {[%clk 0:00:23.1]} 47. h3 {[%clk 0:00:07.1]} 47... Rg3 {[%clk
0:00:22.8]} 48. Ke4 {[%clk 0:00:07.5]} 48... Rxh3 {[%clk 0:00:22.6]} 49. Rc8
{[%clk 0:00:06.5]} 49... Rh4+ {[%clk 0:00:22]} 50. Ke3 {[%clk 0:00:06.5]} 50...
Rf4 {[%clk 0:00:21.7]} 51. Rh8 {[%clk 0:00:04.8]} 51... h5 {[%clk 0:00:20.5]}
52. Rg8+ {[%clk 0:00:05.2]} 52... Kh6 {[%clk 0:00:20]} 53. Rh8+ {[%clk
0:00:05.4]} 53... Kg6 {[%clk 0:00:20.2]} 54. Rg8+ {[%clk 0:00:05.8]} 54... Kf5
{[%clk 0:00:20.5]} 55. Rf8+ {[%clk 0:00:05.1]} 55... Ke5 {[%clk 0:00:20.7]} 56.
Re8+ {[%clk 0:00:05.5]} 56... Kd5 {[%clk 0:00:20.3]} 57. Rd8+ {[%clk 0:00:05.1]}
57... Ke6 {[%clk 0:00:19.7]} 58. Re8+ {[%clk 0:00:03.9]} 58... Kf7 {[%clk
0:00:19.7]} 59. Rh8 {[%clk 0:00:04.4]} 59... h4 {[%clk 0:00:19.8]} 60. Rh5
{[%clk 0:00:04.2]} 60... Kg6 {[%clk 0:00:18.5]} 61. Rh8 {[%clk 0:00:04.4]} 61...
Ra4 {[%clk 0:00:18.3]} 62. Rg8+ {[%clk 0:00:04.8]} 62... Kf6 {[%clk 0:00:18.6]}
63. Rf8+ {[%clk 0:00:04.7]} 63... Kg7 {[%clk 0:00:18.9]} 64. Rf5 {[%clk
0:00:04.5]} 64... Kg6 {[%clk 0:00:18.5]} 65. Rf8 {[%clk 0:00:04.8]} 65... Ra3+
{[%clk 0:00:18.5]} 66. Kf2 {[%clk 0:00:04.8]} 66... Ra2+ {[%clk 0:00:18]} 67.
Ke3 {[%clk 0:00:03.7]} 67... h3 {[%clk 0:00:16.8]} 68. Rh8 {[%clk 0:00:03.5]}
68... h2 {[%clk 0:00:16.6]} 69. Ke4 {[%clk 0:00:02]} 69... Re2+ {[%clk
0:00:15.6]} 70. Kd3 {[%clk 0:00:02.1]} 70... Rg2 {[%clk 0:00:12.7]} 71. Ke3
{[%clk 0:00:02.2]} 71... Kf5 {[%clk 0:00:12.4]} 72. Rh7 {[%clk 0:00:01.6]} 72...
Ra2 {[%clk 0:00:10.7]} 73. Kd3 {[%clk 0:00:01.6]} 73... Kf4 {[%clk 0:00:09.9]}
74. Rh5 {[%clk 0:00:01.4]} 74... Ra3+ {[%clk 0:00:05.4]} 75. Ke2 {[%clk
0:00:01.4]} 75... Ra2+ {[%clk 0:00:01.6]} 76. Kd3 {[%clk 0:00:01.6]} 76... Rb2
{[%clk 0:00:01.9]} 77. Rh8 {[%clk 0:00:02.2]} 77... Kxf3 {[%clk 0:00:01.3]} 78.
Kc3 {[%clk 0:00:02.9]} 1-0

[Event "Late-Titled-Tuesday-Blitz-March-05-2024"]
[Site "Chess.com"]
[Date "2024.03.05"]
[Round "3"]
[White "IngOscarArdila"]
[Black "VinzentSpitzl"]
[Result "0-1"]
[WhiteElo "2331"]
[BlackElo "2548"]
[TimeControl "180+1"]
[EndTime "14:30:36 PST"]
[Termination "VinzentSpitzl won on time"]

1. d4 {[%clk 0:02:59.9]} 1... Nf6 {[%clk 0:02:58.5]} 2. c4 {[%clk 0:02:59.9]}
2... e6 {[%clk 0:02:58.8]} 3. Nc3 {[%clk 0:02:59.6]} 3... d5 {[%clk 0:02:58.9]}
4. Bg5 {[%clk 0:02:57.4]} 4... Be7 {[%clk 0:02:58.9]} 5. Nf3 {[%clk 0:02:56.7]}
5... h6 {[%clk 0:02:58.7]} 6. Bh4 {[%clk 0:02:56.4]} 6... O-O {[%clk 0:02:58.8]}
7. e3 {[%clk 0:02:56.7]} 7... b6 {[%clk 0:02:58.9]} 8. cxd5 {[%clk 0:02:55.3]}
8... Nxd5 {[%clk 0:02:58.4]} 9. Bxe7 {[%clk 0:02:54]} 9... Qxe7 {[%clk
0:02:58.3]} 10. Nxd5 {[%clk 0:02:54]} 10... exd5 {[%clk 0:02:58.9]} 11. Bd3
{[%clk 0:02:53.5]} 11... Be6 {[%clk 0:02:58.6]} 12. h3 {[%clk 0:02:53]} 12...
Nd7 {[%clk 0:02:51.7]} 13. O-O {[%clk 0:02:51.4]} 13... c5 {[%clk 0:02:51.6]}
14. Rc1 {[%clk 0:02:51.5]} 14... Nf6 {[%clk 0:02:35.8]} 15. Ne5 {[%clk
0:02:49.3]} 15... Rfc8 {[%clk 0:02:32.3]} 16. Qf3 {[%clk 0:02:47.8]} 16... Nd7
{[%clk 0:02:25.5]} 17. Nxd7 {[%clk 0:02:28.3]} 17... Qxd7 {[%clk 0:02:23.9]} 18.
dxc5 {[%clk 0:02:13.1]} 18... bxc5 {[%clk 0:02:21]} 19. Rfd1 {[%clk 0:02:12.6]}
19... Rab8 {[%clk 0:02:11.1]} 20. b3 {[%clk 0:02:11.5]} 20... Qe7 {[%clk
0:01:51]} 21. Qf4 {[%clk 0:02:05.1]} 21... a5 {[%clk 0:01:44.7]} 22. Be2 {[%clk
0:01:45.1]} 22... Rb4 {[%clk 0:01:36.5]} 23. Qg3 {[%clk 0:01:44.9]} 23... a4
{[%clk 0:01:31.2]} 24. Bf3 {[%clk 0:01:37.2]} 24... axb3 {[%clk 0:01:21.4]} 25.
axb3 {[%clk 0:01:36.6]} 25... Qb7 {[%clk 0:01:20.9]} 26. Qd6 {[%clk 0:01:31.7]}
26... Rb6 {[%clk 0:01:01.4]} 27. Qe5 {[%clk 0:01:23.8]} 27... Rxb3 {[%clk
0:00:57.2]} 28. Bxd5 {[%clk 0:01:23.5]} 28... Bxd5 {[%clk 0:00:56.6]} 29. Rxd5
{[%clk 0:01:23]} 29... c4 {[%clk 0:00:55.5]} 30. Rc5 {[%clk 0:01:17]} 30... Rb4
{[%clk 0:00:25]} 31. Rxc8+ {[%clk 0:00:57.7]} 31... Qxc8 {[%clk 0:00:24]} 32.
Qe7 {[%clk 0:00:57.7]} 32... Rb2 {[%clk 0:00:21.5]} 33. Qe5 {[%clk 0:00:56.3]}
33... Rb3 {[%clk 0:00:15.5]} 34. Qd5 {[%clk 0:00:54.6]} 34... Rb4 {[%clk
0:00:14]} 35. Qd6 {[%clk 0:00:53.5]} 35... Ra4 {[%clk 0:00:12.7]} 36. Qd4 {[%clk
0:00:48.8]} 36... Qc6 {[%clk 0:00:12.7]} 37. Qd8+ {[%clk 0:00:47.9]} 37... Kh7
{[%clk 0:00:13]} 38. Qd4 {[%clk 0:00:47.9]} 38... g6 {[%clk 0:00:13.1]} 39. Qf4
{[%clk 0:00:44.9]} 39... Kg7 {[%clk 0:00:12]} 40. Qe5+ {[%clk 0:00:43.9]} 40...
Qf6 {[%clk 0:00:12.2]} 41. Qb5 {[%clk 0:00:39.8]} 41... Ra2 {[%clk 0:00:12.2]}
42. Rf1 {[%clk 0:00:33]} 42... c3 {[%clk 0:00:12.5]} 43. Qc4 {[%clk 0:00:33.2]}
43... Rb2 {[%clk 0:00:12.2]} 44. f4 {[%clk 0:00:27]} 44... Rd2 {[%clk
0:00:07.2]} 45. Rf2 {[%clk 0:00:19.3]} 45... Rd1+ {[%clk 0:00:07]} 46. Kh2
{[%clk 0:00:19.3]} 46... Rd2 {[%clk 0:00:07]} 47. Rxd2 {[%clk 0:00:17.6]} 47...
cxd2 {[%clk 0:00:07.9]} 48. Qd3 {[%clk 0:00:18.2]} 48... Qb2 {[%clk 0:00:08]}
49. e4 {[%clk 0:00:17]} 49... Qc1 {[%clk 0:00:08]} 50. Qd4+ {[%clk 0:00:17.1]}
50... Kh7 {[%clk 0:00:08.3]} 51. Qf6 {[%clk 0:00:17.2]} 51... Qc7 {[%clk
0:00:08.2]} 52. Qd4 {[%clk 0:00:14.9]} 52... Qxf4+ {[%clk 0:00:08.2]} 53. g3
{[%clk 0:00:15.3]} 53... Qg5 {[%clk 0:00:05.4]} 54. h4 {[%clk 0:00:15]} 54...
Qe7 {[%clk 0:00:03.6]} 55. Qxd2 {[%clk 0:00:14.8]} 55... Qxe4 {[%clk 0:00:04.1]}
56. Qf2 {[%clk 0:00:15.1]} 56... Qe6 {[%clk 0:00:04.6]} 57. Qf3 {[%clk
0:00:14.5]} 57... Kg7 {[%clk 0:00:05]} 58. Qf2 {[%clk 0:00:14.8]} 58... Qf6
{[%clk 0:00:05.5]} 59. Qe3 {[%clk 0:00:14.8]} 59... h5 {[%clk 0:00:05.8]} 60.
Qe2 {[%clk 0:00:15]} 60... Qc3 {[%clk 0:00:05.7]} 61. Qf2 {[%clk 0:00:14.4]}
61... Qe5 {[%clk 0:00:05.6]} 62. Qf3 {[%clk 0:00:13.7]} 62... Qf6 {[%clk
0:00:06]} 63. Qe2 {[%clk 0:00:13.8]} 63... Qf5 {[%clk 0:00:06.4]} 64. Qb2+
{[%clk 0:00:13.4]} 64... Qf6 {[%clk 0:00:05.8]} 65. Qd2 {[%clk 0:00:13.5]} 65...
Kh7 {[%clk 0:00:06.3]} 66. Qe2 {[%clk 0:00:13.4]} 66... Qe6 {[%clk 0:00:06.3]}
67. Qf2 {[%clk 0:00:13.5]} 67... f6 {[%clk 0:00:06.5]} 68. Qc2 {[%clk
0:00:13.1]} 68... Kg7 {[%clk 0:00:05.9]} 69. Qc7+ {[%clk 0:00:11.9]} 69... Qf7
{[%clk 0:00:06.2]} 70. Qf4 {[%clk 0:00:11.4]} 70... Qe7 {[%clk 0:00:06.2]} 71.
Qf2 {[%clk 0:00:10.7]} 71... Qe6 {[%clk 0:00:05.5]} 72. Qc2 {[%clk 0:00:10.1]}
72... Kf7 {[%clk 0:00:05.8]} 73. Qc7+ {[%clk 0:00:09.2]} 73... Qe7 {[%clk
0:00:06.3]} 74. Qc4+ {[%clk 0:00:09.3]} 74... Kg7 {[%clk 0:00:06]} 75. Qc2
{[%clk 0:00:09.1]} 75... Qe5 {[%clk 0:00:06]} 76. Qd2 {[%clk 0:00:08.3]} 76...
Qb5 {[%clk 0:00:05.3]} 77. Qf2 {[%clk 0:00:06.3]} 77... Qa4 {[%clk 0:00:03.9]}
78. Qe3 {[%clk 0:00:04.3]} 78... Qb4 {[%clk 0:00:01.5]} 79. Qe2 {[%clk
0:00:02.8]} 79... Qf8 {[%clk 0:00:02.1]} 80. Qe6 {[%clk 0:00:02.5]} 80... Qf7
{[%clk 0:00:03]} 81. Qd6 {[%clk 0:00:02.3]} 81... Qf8 {[%clk 0:00:02.9]} 82.
Qd7+ {[%clk 0:00:02.4]} 82... Qf7 {[%clk 0:00:03.8]} 83. Qd6 {[%clk 0:00:02.7]}
83... Kh7 {[%clk 0:00:04.2]} 84. Qd4 {[%clk 0:00:02.2]} 84... Kg8 {[%clk
0:00:04.6]} 85. Qd8+ {[%clk 0:00:02.1]} 85... Kg7 {[%clk 0:00:05.5]} 86. Qd4
{[%clk 0:00:02.5]} 86... Qa2+ {[%clk 0:00:05.6]} 87. Kh3 {[%clk 0:00:02.2]}
87... Qe6+ {[%clk 0:00:06.5]} 0-1

[Event "Late-Titled-Tuesday-Blitz-March-05-2024"]
[Site "Chess.com"]
[Date "2024.03.05"]
[Round "4"]
[White "secretworker2027"]
[Black "Road2GM3000"]
[Result "1-0"]
[WhiteElo "2663"]
[BlackElo "2500"]
[TimeControl "180+1"]
[EndTime "14:33:44 PST"]
[Termination "secretworker2027 won by resignation"]

1. e4 {[%clk 0:03:00.9]} 1... c5 {[%clk 0:02:57.7]} 2. Nc3 {[%clk 0:03:00.7]}
2... d6 {[%clk 0:02:57.7]} 3. Nf3 {[%clk 0:02:58.9]} 3... Nf6 {[%clk 0:02:57.5]}
4. d4 {[%clk 0:02:59.6]} 4... cxd4 {[%clk 0:02:57.8]} 5. Nxd4 {[%clk 0:03:00.5]}
5... a6 {[%clk 0:02:58.3]} 6. Nb3 {[%clk 0:03:01.2]} 6... Nc6 {[%clk 0:02:49.6]}
7. Nd5 {[%clk 0:02:57.5]} 7... Nxe4 {[%clk 0:02:33.9]} 8. Be3 {[%clk 0:02:56.2]}
8... g6 {[%clk 0:02:29.6]} 9. Bb6 {[%clk 0:02:54]} 9... Qd7 {[%clk 0:02:15.4]}
10. Nc7+ {[%clk 0:02:52.7]} 10... Kd8 {[%clk 0:02:14.7]} 11. Nxa8+ {[%clk
0:02:53.3]} 11... Ke8 {[%clk 0:02:15.3]} 12. Nc7+ {[%clk 0:02:53.8]} 12... Kd8
{[%clk 0:02:15]} 13. Nxa6+ {[%clk 0:02:53]} 13... Ke8 {[%clk 0:02:15.1]} 14.
Nc7+ {[%clk 0:02:51.9]} 14... Kd8 {[%clk 0:02:15.5]} 15. Ne6+ {[%clk 0:02:50.9]}
15... Ke8 {[%clk 0:02:15.2]} 16. Nxf8 {[%clk 0:02:51.8]} 16... Kxf8 {[%clk
0:02:12.4]} 17. Bd3 {[%clk 0:02:50.9]} 1-0

[Event "Late-Titled-Tuesday-Blitz-March-05-2024"]
[Site "Chess.com"]
[Date "2024.03.05"]
[Round "4"]
[White "TimGrutter03"]
[Black "emeli_chess"]
[Result "1-0"]
[WhiteElo "2614"]
[BlackElo "2418"]
[TimeControl "180+1"]
[EndTime "14:35:14 PST"]
[Termination "TimGrutter03 won by resignation"]

1. g3 {[%clk 0:03:00.9]} 1... f5 {[%clk 0:02:59.5]} 2. Bg2 {[%clk 0:03:00.3]}
2... Nf6 {[%clk 0:02:59.7]} 3. Nc3 {[%clk 0:03:00.3]} 3... d6 {[%clk 0:02:58.1]}
4. e4 {[%clk 0:02:59.8]} 4... e5 {[%clk 0:02:57.4]} 5. d4 {[%clk 0:02:59]} 5...
Nc6 {[%clk 0:02:51.9]} 6. Nge2 {[%clk 0:02:57.6]} 6... Be7 {[%clk 0:02:49.7]} 7.
O-O {[%clk 0:02:56.5]} 7... O-O {[%clk 0:02:49.5]} 8. f4 {[%clk 0:02:56.6]} 8...
exd4 {[%clk 0:02:47.5]} 9. Nxd4 {[%clk 0:02:54.9]} 9... Nxd4 {[%clk 0:02:47.7]}
10. Qxd4 {[%clk 0:02:55.4]} 10... fxe4 {[%clk 0:02:45.4]} 11. Nxe4 {[%clk
0:02:54.9]} 11... Nxe4 {[%clk 0:02:45.5]} 12. Bxe4 {[%clk 0:02:54.5]} 12... Bh3
{[%clk 0:02:33.6]} 13. Qd5+ {[%clk 0:02:44.3]} 13... Kh8 {[%clk 0:02:32.1]} 14.
Qh5 {[%clk 0:02:43.6]} 14... h6 {[%clk 0:01:35.3]} 15. Qxh3 {[%clk 0:02:41.7]}
15... d5 {[%clk 0:01:33.1]} 16. Bg6 {[%clk 0:02:34]} 16... Qd6 {[%clk 0:01:24]}
17. f5 {[%clk 0:02:32.9]} 17... Qe5 {[%clk 0:01:12.1]} 18. Bxh6 {[%clk
0:02:24.1]} 1-0

[Event "Late-Titled-Tuesday-Blitz-March-05-2024"]
[Site "Chess.com"]
[Date "2024.03.05"]
[Round "4"]
[White "Kgutierrez95"]
[Black "Akhayan"]
[Result "0-1"]
[WhiteElo "2199"]
[BlackElo "2392"]
[TimeControl "180+1"]
[EndTime "14:35:20 PST"]
[Termination "Akhayan won by resignation"]

1. e4 {[%clk 0:03:00.9]} 1... c5 {[%clk 0:02:59.6]} 2. Nf3 {[%clk 0:03:00.4]}
2... e6 {[%clk 0:03:00]} 3. d4 {[%clk 0:03:00.4]} 3... cxd4 {[%clk 0:03:00.6]}
4. Nxd4 {[%clk 0:03:01.1]} 4... Nf6 {[%clk 0:03:00.9]} 5. Nc3 {[%clk 0:03:00.7]}
5... d6 {[%clk 0:03:01.3]} 6. Ndb5 {[%clk 0:02:54.7]} 6... a6 {[%clk 0:03:00.1]}
7. Na3 {[%clk 0:02:54.7]} 7... b5 {[%clk 0:02:59.6]} 8. b4 {[%clk 0:02:47.8]}
8... d5 {[%clk 0:02:52.6]} 9. Qd4 {[%clk 0:02:30.1]} 9... Nc6 {[%clk 0:02:49.8]}
10. Qd3 {[%clk 0:02:20.7]} 10... Nxb4 {[%clk 0:02:48]} 11. Qf3 {[%clk
0:02:11.8]} 11... d4 {[%clk 0:02:39.3]} 12. Ncxb5 {[%clk 0:02:08.8]} 12... axb5
{[%clk 0:02:38.7]} 13. Bxb5+ {[%clk 0:02:07.1]} 13... Bd7 {[%clk 0:02:39.1]} 14.
Bxd7+ {[%clk 0:02:05.8]} 14... Qxd7 {[%clk 0:02:37.2]} 15. e5 {[%clk 0:02:05.5]}
15... Nfd5 {[%clk 0:02:35.9]} 16. O-O {[%clk 0:01:59.2]} 16... Be7 {[%clk
0:02:35.6]} 17. Bb2 {[%clk 0:01:51.5]} 17... O-O {[%clk 0:02:18.9]} 18. Bxd4
{[%clk 0:01:50.7]} 18... Rxa3 {[%clk 0:01:55.4]} 0-1

[Event "Late-Titled-Tuesday-Blitz-March-05-2024"]
[Site "Chess.com"]
[Date "2024.03.05"]
[Round "4"]
[White "martinez_95"]
[Black "Eeleyah"]
[Result "0-1"]
[WhiteElo "2225"]
[BlackElo "2465"]
[TimeControl "180+1"]
[EndTime "14:35:46 PST"]
[Termination "Eeleyah won by resignation"]

1. d4 {[%clk 0:03:00.9]} 1... d5 {[%clk 0:02:59.1]} 2. c4 {[%clk 0:03:00.9]}
2... e6 {[%clk 0:02:59.4]} 3. Nf3 {[%clk 0:03:00.7]} 3... Nf6 {[%clk 0:02:59.8]}
4. Nc3 {[%clk 0:02:59.7]} 4... Nbd7 {[%clk 0:02:55.7]} 5. Bg5 {[%clk 0:02:59.5]}
5... Bb4 {[%clk 0:02:49.4]} 6. Rc1 {[%clk 0:02:56.1]} 6... c5 {[%clk 0:02:49.5]}
7. a3 {[%clk 0:02:55]} 7... Bxc3+ {[%clk 0:02:44.1]} 8. bxc3 {[%clk 0:02:55.9]}
8... dxc4 {[%clk 0:02:34.4]} 9. e3 {[%clk 0:02:54]} 9... b5 {[%clk 0:02:33.9]}
10. e4 {[%clk 0:02:25.6]} 10... h6 {[%clk 0:02:24.1]} 11. Bxf6 {[%clk
0:02:23.3]} 11... Nxf6 {[%clk 0:02:20.9]} 12. Ne5 {[%clk 0:02:19.9]} 12... O-O
{[%clk 0:02:12.5]} 13. f3 {[%clk 0:01:55.8]} 13... Qc7 {[%clk 0:01:57.3]} 14. h4
{[%clk 0:01:52.4]} 14... Rd8 {[%clk 0:01:49.1]} 15. Qe2 {[%clk 0:01:40.1]} 15...
cxd4 {[%clk 0:01:45.2]} 16. cxd4 {[%clk 0:01:37.9]} 16... Rxd4 {[%clk
0:01:46.1]} 0-1